fUSD/lending_fUSD_20240915
["ID","MTS","AMOUNT","RATE_DAILY","PERIOD"]
[338245781,1726428632089,-1300.0,0.0001286,2]
[338245782,1726428632156,-445.98557094,0.0001286,2]
[338245783,1726428632168,-477.16550083,0.0001286,2]
[338245784,1726428632177,-163.38,0.0001286,2]
[338245785,1726428632187,-150.0,0.00012869,2]
[338245786,1726428632196,-307.55574572,0.00012869,2]
[338245787,1726428632209,-688.39999162,0.00012869,2]
[338245788,1726428632220,-4.04426266,0.00012869,2]
[338245789,1726428632231,-2190.51229789,0.0001287,2]
[338245790,1726428632243,-5925.17501481,0.0001287,2]
[338245791,1726428632254,-5992.49459262,0.0001287,2]
[338245792,1726428632306,-2035.89616596,0.0001287,2]
[338245793,1726428632322,-3504.07490294,0.0001287,2]
[338245794,1726428632339,-278.60878409,0.0001287,2]
[338245795,1726428632351,-541.65536624,0.0001287,2]
[338245796,1726428632363,-45063.46960216,0.0001287,2]
[338245797,1726428632376,-20557.51940339,0.0001287,2]
[338245798,1726428632392,-17525.59017504,0.0001287,2]
[338245799,1726428632401,-42706.0,0.0001287,2]
[338245800,1726428632410,-7619.9559316,0.0001288,2]
[338245801,1726428632421,-697.3399656,0.00012889,2]
[338245802,1726428632430,-4228.3964,0.000129,2]
[338245803,1726428632440,-5246.6883,0.000129,2]
[338245804,1726428632449,-204.66861094,0.000129,2]
[338245805,1726428632459,-1576.732982,0.000129,2]
[338245806,1726428632469,-217.12067785,0.000129,2]
[338245807,1726428632478,-193.64158531,0.000129,2]
[338245808,1726428632488,-320.60220561,0.000129,2]
[338245809,1726428632502,-203.0,0.0001293,2]
[338245810,1726428632512,-500.0,0.00012973,2]
[338245811,1726428632521,-500.0,0.00012973,2]
[338245812,1726428632532,-500.0,0.00012973,2]
[338245813,1726428632543,-156.12,0.0001299,2]
[338245814,1726428632552,-166.42136767,0.0001299,2]
[338245815,1726428632563,-500.0,0.00012999,2]
[338245816,1726428632574,-384.55510475,0.00012999,2]
[338245817,1726428632584,-243.59037066,0.00012999,2]
[338245818,1726428632593,-832.99,0.00013,2]
[338245819,1726428632603,-1100.0,0.00013,2]
[338245820,1726428632613,-998.6,0.00013,2]
[338245821,1726428632622,-131464.92786012,0.00013,2]
[338245822,1726428632634,-564.04165077,0.00013,2]
[338245823,1726428632646,-2966.48754,0.00013,2]
[338245824,1726428632681,250.0,0.00012041,2]
[338245825,1726428632694,-1211.0,0.00013,2]
[338245826,1726428632706,-2218.35862201,0.00013,2]
[338245827,1726428632718,-700.0,0.00013,2]
[338245828,1726428632729,-5243.29172088,0.00013,2]
[338245829,1726428638006,-1180.33371517,0.00013,2]
[338245831,1726428638033,-1138.0,0.00013,2]
[338245832,1726428638045,-1264.43557993,0.00013,2]
[338245833,1726428638057,-2953.88686576,0.00013,2]
[338245834,1726428638069,-11520.88776301,0.00013,2]
[338245835,1726428638080,-468.87,0.00013,2]
[338245836,1726428638092,-845.302431,0.00013,2]
[338245837,1726428638104,-2901.32341379,0.00013,2]
[338245838,1726428638120,-13142.68775836,0.00013,2]
[338245839,1726428638131,-1454.72444938,0.00013,2]
[338245840,1726428638194,-699.69900693,0.00013,2]
[338245841,1726428638312,-1653.30074455,0.00013,2]
[338245842,1726428638326,-6525.06999584,0.00013,2]
[338245843,1726428638338,-4241.27517705,0.00013,2]
[338245844,1726428638363,-4010.09499,0.00013,2]
[338245846,1726428638422,-345.44,0.00013,2]
[338245932,1726428640116,-882.61029718,0.00013,2]
[338245933,1726428640128,-518.424,0.00013,2]
[338245934,1726428640140,-641.04032029,0.00013,2]
[338245935,1726428640156,-1027.23639687,0.00013,2]
[338245936,1726428640168,-234878.48874129,0.00013,2]
[338245937,1726428640178,-263602.58560705,0.00013,2]
[338245938,1726428640191,-609525.25485755,0.00013,2]
[338245939,1726428640202,-2015.94855758,0.00013,2]
[338245940,1726428640214,-1700.0,0.00013,2]
[338245941,1726428640227,-1094.57625342,0.00013,2]
[338245942,1726428640242,-30993.07578089,0.00013,2]
[338245943,1726428640254,-840.77658634,0.00013,2]
[338245944,1726428640276,-365.060164,0.00013,2]
[338245945,1726428640289,-642.84,0.00013,2]
[338245946,1726428640302,-1620.92916631,0.00013,2]
[338245970,1726428643093,-4924.92,0.00013,2]
[338245971,1726428643110,-26672.644714,0.00013,2]
[338245972,1726428643122,-22774.53072021,0.00013,2]
[338245973,1726428643134,-4134.07317211,0.00013,2]
[338245974,1726428643146,-2149.47125223,0.00013,2]
[338245975,1726428643159,-511.99551605,0.00013,2]
[338245976,1726428643171,-2498.82070866,0.00013,2]
[338245977,1726428643184,-8264.97603201,0.00013,2]
[338245978,1726428643196,-399.77454321,0.00013,2]
[338245979,1726428643208,-1371.56063522,0.00013,2]
[338245980,1726428643220,-271.99999994,0.00013,2]
[338245981,1726428643235,-2498.71308687,0.00013,2]
[338245982,1726428643246,-5200.0,0.00013,2]
[338245983,1726428643258,-1509.89121034,0.00013,2]
[338245984,1726428643276,-491.05867986,0.00013,2]
[338245985,1726428643287,-795.489987,0.00013,2]
[338245986,1726428643300,-622.9,0.00013,2]
[338245987,1726428643313,-18022.08766125,0.00013,2]
[338245988,1726428643328,-291.73346888,0.00013,2]
[338245989,1726428643340,-92402.99795642,0.00013,2]
[338246007,1726428646034,-711.38074383,0.00013,2]
[338246008,1726428646048,-3417.34393201,0.00013,2]
[338246009,1726428646060,-7510.13108244,0.00013,2]
[338246010,1726428646074,-333.01477701,0.00013,2]
[338246011,1726428646091,-2073.29355406,0.00013,2]
[338246012,1726428646165,-78229.67342884,0.00013,2]
[338246013,1726428646178,-1215.30012531,0.00013,2]
[338246014,1726428646195,-31070.576,0.00013,2]
[338246015,1726428646207,-631.44235829,0.00013,2]
[338246016,1726428646219,-831.659,0.00013,2]
[338246021,1726428759185,22396.61,0.00012393,2]
[338246022,1726428826698,578.82,0.00012333,2]
[338246024,1726428876578,195.02,0.00010959,2]
[338246025,1726428892930,275.16,0.00012262,2]
[338246026,1726428912768,150.0,0.00012262,2]
[338246027,1726429051989,172.43,0.00012221,2]
[338246028,1726429068800,250.0,0.00012221,2]
[338246029,1726429070342,415.74,0.00012222,2]
[338246030,1726429094810,840.0,0.00012189,2]
[338246031,1726429117595,539.53,0.00010258,2]
[338246032,1726429117821,539.53,0.00012521,2]
[338246033,1726429143251,250.0,0.00012175,2]
[338246034,1726429152089,250.0,0.00012175,2]
[338246035,1726429191514,2000.0,0.00012151,2]
[338246036,1726429232313,175.09,0.00012479,2]
[338246037,1726429260756,155.16,0.00012103,2]
[338246038,1726429261000,155.16,0.00012113,2]
[338246039,1726429261225,155.16,0.00012123,2]
[338246040,1726429261464,155.16,0.00012133,2]
[338246041,1726429261685,155.16,0.00012143,2]
[338246042,1726429261905,155.16,0.00012154,2]
[338246043,1726429262118,155.16,0.00012164,2]
[338246045,1726429444887,152.08,0.00010959,2]
[338246046,1726429509787,796.0,0.0001264,2]
[338246047,1726429530917,796.0,0.0001264,2]
[338246048,1726429583873,328.0,0.00012094,2]
[338246049,1726429627232,502.74,0.00010196,2]
[338246050,1726429627468,502.74,0.0001246,2]
[338246051,1726429644879,270.64,0.00012148,2]
[338246059,1726429715869,250.0,0.00012064,2]
[338246061,1726429765440,167.0,0.00012445,2]
[338246062,1726429768975,207.87,0.00012064,2]
[338246063,1726429832108,-800.0,0.0001274,2]
[338246064,1726429832123,-343.4282256,0.0001274,2]
[338246065,1726429832134,-150.0,0.00012767,2]
[338246066,1726429832146,-166.89523865,0.0001279,2]
[338246067,1726429832166,-1974.13736734,0.0001279,2]
[338246068,1726429832211,-290.46,0.0001279,2]
[338246069,1726429832224,-1107.09162586,0.0001279,2]
[338246070,1726429832233,-150.0,0.00012799,2]
[338246071,1726429832243,-182.953,0.000128,2]
[338246072,1726429832252,-281.8951,0.000128,2]
[338246073,1726429832261,-1000.0,0.000128,2]
[338246074,1726429832271,-869.78403941,0.000128,2]
[338246075,1726429832287,-450.0,0.000128,2]
[338246109,1726429838146,-2004.83053,0.000128,2]
[338246110,1726429838200,-585.70767439,0.000128,2]
[338246113,1726429838308,-11277.24486646,0.000128,2]
[338246114,1726429838319,-214.1437,0.000128,2]
[338246115,1726429838329,-466.3484,0.000128,2]
[338246116,1726429838339,-3209.8632,0.000128,2]
[338246117,1726429838349,-213.3026,0.000128,2]
[338246118,1726429838359,-11926.19814839,0.000128,2]
[338246119,1726429838372,-344.3488,0.000128,2]
[338246120,1726429838468,-985.02,0.000128,2]
[338246225,1726429840105,-1469.6911387,0.000128,2]
[338246226,1726429840118,-1388.17314979,0.000128,2]
[338246227,1726429840212,-4257.98389015,0.000128,2]
[338246228,1726429840224,-1204.27187297,0.000128,2]
[338246229,1726429840235,-1428.2992,0.000128,2]
[338246230,1726429840246,-1386.52020665,0.000128,2]
[338246231,1726429840260,-315.6,0.000128,2]
[338246232,1726429840271,-13852.96939335,0.000128,2]
[338246233,1726429840280,-7924.9599,0.000128,2]
[338246234,1726429840290,-1143.0515,0.000128,2]
[338246235,1726429840299,-506.6185,0.000128,2]
[338246236,1726429840309,-4225.5522691,0.000128,2]
[338246237,1726429840318,-3399.23897511,0.0001287,2]
[338246238,1726429840327,-1000.0,0.00012899,2]
[338246239,1726429840337,-3319.11270908,0.00012899,2]
[338246240,1726429840346,-7658.9519,0.000129,2]
[338246241,1726429840355,-326.1077,0.000129,2]
[338246242,1726429840364,-6736.9809,0.000129,2]
[338246243,1726429840374,-46810.61465979,0.000129,2]
[338246244,1726429840385,-1777.7292,0.000129,2]
[338246245,1726429840396,-803.24460457,0.000129,2]
[338246246,1726429840408,-2064.47930396,0.000129,2]
[338246247,1726429840429,-600.607841,0.000129,2]
[338246248,1726429842356,2983.79799324,0.00012593,2]
[338246263,1726429843235,-782.4782933,0.000129,2]
[338246264,1726429843247,-33842.90208829,0.000129,2]
[338246265,1726429843258,-5149.13413065,0.000129,2]
[338246266,1726429843270,-29142.31862841,0.000129,2]
[338246267,1726429843281,-17425.3167448,0.000129,2]
[338246268,1726429843291,-16268.07293523,0.000129,2]
[338246272,1726429844264,-491.8592599,0.000129,2]
[338246273,1726429846107,-3145.3242101,0.000129,2]
[338246274,1726429846118,-270.23793475,0.000129,2]
[338246275,1726429846127,-1334.664,0.000129,2]
[338246276,1726429846136,-701.39,0.000129,2]
[338246277,1726429846147,-3233.97,0.000129,2]
[338246278,1726429846157,-7500.0,0.000129,2]
[338246279,1726429846167,-901.53886,0.0001291,2]
[338246280,1726429846178,-901.53886,0.0001292,2]
[338246281,1726429846187,-843.89,0.0001294,2]
[338246282,1726429846197,-202.01,0.0001294,2]
[338246283,1726429846207,-499.99,0.00012944,2]
[338246284,1726429846217,-901.53887,0.0001296,2]
[338246285,1726429846226,-212.09233861,0.00012973,2]
[338246286,1726429846237,-175.09,0.00012994,2]
[338246287,1726429846246,-1244.40064796,0.00012994,2]
[338246288,1726429846255,-25799.74263587,0.00013,2]
[338246289,1726429846274,-1554.23207167,0.00013,2]
[338246290,1726429846422,-549.96057904,0.00013,2]
[338246293,1726429930022,153.52,0.00010959,2]
[338246295,1726430007888,500.0,0.00011164,2]
[338246296,1726430025462,1050.0,0.00011,2]
[338246297,1726430115166,737.6,0.00012324,2]
[338246298,1726430141588,215.26,0.00012334,2]
[338246299,1726430157151,250.0,0.00012338,2]
[338246303,1726430243433,153.824096,0.00012636,2]
[338246304,1726430248082,154.84,0.00012289,2]
[338246305,1726430248297,154.84,0.0001235,2]
[338246306,1726430259268,250.0,0.00012289,2]
[338246307,1726430330952,23900.0,0.00012231,2]
[338246308,1726430334160,487.04,0.00010313,2]
[338246309,1726430334394,487.04,0.00012577,2]
[338246310,1726430365470,167.0,0.00012561,2]
[338246311,1726430390403,556.25,0.00012203,2]
[338246312,1726430438397,161.81,0.00010959,2]
[338246313,1726430484337,2000.0,0.00012224,2]
[338246314,1726430569857,3041.0,0.00012,5]
[338246315,1726430644544,172.43,0.00012189,2]
[338246316,1726430648971,409.92,0.00012189,2]
[338246317,1726430794280,250.0,0.0001224,2]
[338246318,1726430884328,454.87,0.00010215,2]
[338246319,1726430884548,454.87,0.00012479,2]
[338246320,1726430890546,278.12,0.00012132,2]
[338246335,1726431032259,-190.90777657,0.000127,2]
[338246343,1726431032509,-150.0,0.00012799,2]
[338246344,1726431032600,-566.755,0.000128,2]
[338246345,1726431032613,-7961.24854783,0.000128,2]
[338246347,1726431032625,-1786.71591369,0.000128,2]
[338246349,1726431032636,-490.46366303,0.000128,2]
[338246351,1726431032648,-697.89036063,0.000128,2]
[338246354,1726431032662,-3172.38668386,0.000128,2]
[338246356,1726431032674,-1097.34227907,0.000128,2]
[338246358,1726431032686,-1346.50221221,0.000128,2]
[338246360,1726431032697,-879.36353194,0.000128,2]
[338246363,1726431032709,-724.05259286,0.000128,2]
[338246365,1726431032721,-929.67561488,0.000128,2]
[338246367,1726431032731,-402.95554321,0.000128,2]
[338246369,1726431032743,-424.95115679,0.000128,2]
[338246371,1726431032753,-59.36884321,0.000128,2]
[338246373,1726431032765,-503.022718,0.000128,2]
[338246374,1726431032786,-3827.23393879,0.000128,2]
[338246375,1726431032795,-171.65,0.0001281,2]
[338246376,1726431032806,-260.8721,0.00012812,2]
[338246377,1726431032816,-826.5722,0.00012812,2]
[338246378,1726431032825,-159.42201488,0.00012861,2]
[338246379,1726431032835,-243.02073,0.0001287,2]
[338246380,1726431032845,-4786.06750539,0.0001289,2]
[338246381,1726431032855,-256.66785275,0.00012899,2]
[338246382,1726431032864,-8897.529,0.000129,2]
[338246383,1726431032874,-3256.0601,0.000129,2]
[338246384,1726431032883,-292.8626,0.000129,2]
[338246385,1726431032893,-247.5158,0.000129,2]
[338246386,1726431032905,-12351.7357,0.000129,2]
[338246387,1726431032919,-214.1437,0.000129,2]
[338246388,1726431032929,-2500.0,0.000129,2]
[338246389,1726431032939,-499.99,0.000129,2]
[338246390,1726431032949,-340.3042,0.000129,2]
[338246391,1726431032959,-1000.0,0.000129,2]
[338246392,1726431032969,-216.1903478,0.000129,2]
[338246393,1726431032979,-17906.54665013,0.000129,2]
[338246394,1726431032989,-810.0,0.00012912,2]
[338246395,1726431032999,-932.0,0.00012912,2]
[338246396,1726431033010,-553.0,0.00012912,2]
[338246397,1726431033020,-1902.0,0.00012912,2]
[338246398,1726431033030,-299.99,0.00012912,2]
[338246399,1726431033042,-9999.99,0.00012912,2]
[338246400,1726431033052,-857.33,0.00012912,2]
[338246401,1726431033062,-202.011,0.00012938,2]
[338246402,1726431033072,-675.112,0.00012938,2]
[338246403,1726431033082,-500.0,0.00012973,2]
[338246404,1726431033093,-37850.8192328,0.00013,2]
[338246405,1726431033124,-1524.34482676,0.00013,2]
[338246408,1726431038339,-6014.66213,0.00013,2]
[338246409,1726431038351,-902.43125198,0.00013,2]
[338246410,1726431038391,-2709.48663959,0.00013,2]
[338246411,1726431038403,-421.78588728,0.00013,2]
[338246412,1726431038414,-2364.01451426,0.00013,2]
[338246413,1726431038426,-724.97184001,0.00013,2]
[338246414,1726431038449,-9681.01263141,0.00013,2]
[338246415,1726431038462,-918.84607546,0.00013,2]
[338246416,1726431038610,-27310.07262118,0.00013,2]
[338246417,1726431038622,-10729.9312,0.00013,2]
[338246418,1726431038634,-1503.10643675,0.00013,2]
[338246419,1726431038646,-273.87550485,0.00013,2]
[338246420,1726431038658,-425.4,0.00013,2]
[338246421,1726431038708,-7637.75624893,0.00013,2]
[338246427,1726431040245,-3297.81886019,0.00013,2]
[338246431,1726431040299,-1283.74092876,0.00013,2]
[338246432,1726431040311,-2516.12360875,0.00013,2]
[338246433,1726431040322,-894.16772536,0.00013,2]
[338246434,1726431040353,-1674.16753676,0.00013,2]
[338246435,1726431040408,-11885.75321285,0.00013,2]
[338246436,1726431040418,-5073.4259752,0.00013,2]
[338246437,1726431040429,-4302.89567398,0.00013,2]
[338246438,1726431040440,-10465.05047589,0.00013,2]
[338246439,1726431040461,-1072.66280005,0.00013,2]
[338246440,1726431040516,-21322.69034858,0.00013,2]
[338246441,1726431040528,-449.03088406,0.00013,2]
[338246442,1726431040540,-685.08301683,0.00013,2]
[338246443,1726431040551,-418.43404489,0.00013,2]
[338246444,1726431040574,-336.33340891,0.00013,2]
[338246502,1726431046467,-329.36529402,0.00013,2]
[338246503,1726431259933,335.34,0.00012236,2]
[338246504,1726431284587,250.0,0.00012228,2]
[338246505,1726431286426,212.0,0.0001259,2]
[338246506,1726431342835,23900.0,0.00012176,2]
[338246507,1726431428801,426.4,0.00010241,2]
[338246508,1726431429028,426.4,0.00012505,2]
[338246509,1726431461730,623.77,0.00012181,2]
[338246510,1726431485303,159.48,0.00012158,2]
[338246511,1726431492286,250.0,0.00012158,2]
[338246512,1726431524034,395.48,0.00012118,2]
[338246513,1726431676621,167.0,0.00012502,2]
[338246514,1726431773524,327.94,0.00012112,2]
[338246515,1726431807204,250.0,0.0001207,2]
[338246516,1726431812978,172.2,0.0001207,2]
[338246517,1726431828124,1050.0,0.00011,2]
[338246518,1726431834922,1054.34,0.00012048,2]
[338246519,1726431898987,2000.0,0.00012043,2]
[338246520,1726431952593,399.31,0.00010149,2]
[338246521,1726431952891,399.31,0.00012413,2]
[338246524,1726432052557,192.86,0.00010959,2]
[338246525,1726432111350,311.88,0.00012082,2]
[338246541,1726432231419,-159.12,0.00012645,2]
[338246543,1726432231429,-699.04390953,0.000127,2]
[338246544,1726432231440,-2354.73262451,0.000127,2]
[338246546,1726432231453,-453.51,0.000127,2]
[338246547,1726432231464,-3239.31306596,0.000127,2]
[338246548,1726432231473,-212.0,0.0001276,2]
[338246549,1726432231483,-672.06,0.00012779,2]
[338246550,1726432231492,-773.80169893,0.0001279,2]
[338246551,1726432231503,-170.51325946,0.00012799,2]
[338246552,1726432231512,-150.0,0.00012799,2]
[338246553,1726432231521,-493.29946258,0.000128,2]
[338246554,1726432231533,-769.65692556,0.000128,2]
[338246555,1726432231640,-2499.12149659,0.000128,2]
[338246556,1726432231655,-1894.86731563,0.000128,2]
[338246557,1726432231666,-3989.45713517,0.000128,2]
[338246558,1726432231678,-13495.05892328,0.000128,2]
[338246559,1726432231690,-1696.90748372,0.000128,2]
[338246564,1726432237559,-3237.2795041,0.00012779,2]
[338246565,1726432237568,-6259.23839236,0.000128,2]
[338246566,1726432237579,-6013.17973,0.000128,2]
[338246567,1726432237616,-839.35603994,0.000128,2]
[338246568,1726432237627,-2515.47398675,0.000128,2]
[338246569,1726432237676,-5097.47529171,0.000128,2]
[338246570,1726432237692,-1044.62063914,0.000128,2]
[338246571,1726432237734,-33119.6434447,0.000128,2]
[338246572,1726432237907,-2926.27464045,0.000128,2]
[338246573,1726432237921,-565.54412118,0.000128,2]
[338246579,1726432239397,-628.10547313,0.000128,2]
[338246582,1726432239455,-600.389444,0.000128,2]
[338246583,1726432239468,-539.10627051,0.000128,2]
[338246584,1726432239479,-424.16972807,0.000128,2]
[338246585,1726432239515,-5699.56725502,0.000128,2]
[338246586,1726432239525,-656.66910624,0.000128,2]
[338246587,1726432239537,-3705.05,0.000128,2]
[338246588,1726432239548,-3868.2,0.000128,2]
[338246589,1726432239560,-1568.29552831,0.000128,2]
[338246590,1726432239572,-883.29999,0.000128,2]
[338246591,1726432239583,-299.020062,0.000128,2]
[338246592,1726432239598,-322.56152394,0.000128,2]
[338246593,1726432239635,-3504.1443,0.000128,2]
[338246594,1726432239647,-933.5,0.000128,2]
[338246595,1726432239659,-1367.76559331,0.000128,2]
[338246596,1726432239700,-743.53229244,0.000128,2]
[338246612,1726432242508,-457.46219434,0.000128,2]
[338246613,1726432242521,-265.6000002,0.000128,2]
[338246614,1726432242533,-377.11693109,0.000128,2]
[338246615,1726432242624,-653.31270692,0.000128,2]
[338246616,1726432242738,-1079.31918,0.000128,2]
[338246620,1726432245454,-668.30843146,0.000128,2]
[338246621,1726432245509,-973.24910627,0.000128,2]
[338246622,1726432245731,-444.16475711,0.000128,2]
[338246626,1726432308744,171.65,0.00012242,2]
[338246627,1726432314350,179.66,0.00012242,2]
[338246628,1726432365574,250.0,0.00012232,2]
[338246629,1726432376981,400.0,0.000124,4]
[338246630,1726432378899,900.0,0.000125,4]
[338246631,1726432381005,1400.0,0.000126,4]
[338246632,1726432386234,1000.0,0.00012163,2]
[338246633,1726432456430,402.01,0.00010123,2]
[338246634,1726432456625,402.01,0.00012387,2]
[338246635,1726432463196,10182.06,0.0001204,2]
[338246636,1726432571032,250.0,0.00012057,2]
[338246637,1726432619953,250.0,0.00012018,2]
[338246638,1726432668842,488.06,0.00012018,2]
[338246639,1726432710675,753.464,0.00012544,2]
[338246640,1726432710718,231.157,0.00012544,2]
[338246641,1726432734636,167.02,0.00012445,2]
[338246642,1726432845010,150.0,0.0001205,2]
[338246643,1726432869497,315.5173026,0.00012613,2]
[338246644,1726432902456,1500.0,0.00012054,2]
[338246645,1726432905750,200.0,0.00012054,2]
[338246646,1726432915695,250.0,0.00012032,2]
[338246647,1726432952650,361.8,0.00010114,2]
[338246648,1726432952863,361.8,0.00012378,2]
[338246649,1726432969746,329.52,0.00012032,2]
[338246650,1726433096613,154.98,0.00010959,2]
[338246652,1726433227020,300.0,0.000124,4]
[338246653,1726433229131,700.0,0.000125,4]
[338246654,1726433231307,1000.0,0.000126,4]
[338246655,1726433273746,175.09,0.00012445,2]
[338246656,1726433366716,-283.83630344,0.0001267,2]
[338246660,1726433375532,244.03,0.00012003,2]
[338246663,1726433407886,840.0,0.00012018,2]
[338246672,1726433431626,-166.93312656,0.0001267,2]
[338246673,1726433431638,-202.51727,0.0001267,2]
[338246674,1726433431649,-450.76943,0.0001269,2]
[338246675,1726433431658,-150.0,0.00012699,2]
[338246676,1726433431668,-4493.13618206,0.000127,2]
[338246677,1726433431680,-397.08384421,0.000127,2]
[338246678,1726433431693,-822.5,0.000127,2]
[338246679,1726433431705,-1578.55756815,0.000127,2]
[338246680,1726433431740,-258.76851609,0.000127,2]
[338246681,1726433431754,-319.86038199,0.000127,2]
[338246682,1726433431798,-1817.0535657,0.000127,2]
[338246696,1726433437748,-2076.51561816,0.000127,2]
[338246697,1726433437760,-1216.02192436,0.000127,2]
[338246698,1726433437771,-3107.13096932,0.000127,2]
[338246699,1726433437922,-340.82918845,0.000127,2]
[338246700,1726433437934,-1451.33807564,0.000127,2]
[338246702,1726433439639,-568.16343848,0.000127,2]
[338246703,1726433439696,-3249.95340702,0.000127,2]
[338246704,1726433439753,-542.26167951,0.000127,2]
[338246705,1726433439765,-1610.13789908,0.000127,2]
[338246706,1726433439777,-1286.35764178,0.000127,2]
[338246707,1726433439787,-11.00495274,0.000127,2]
[338246708,1726433439799,-161.9473255,0.000127,2]
[338246709,1726433439809,-1157.25446909,0.000127,4]
[338246710,1726433439825,-242.74553091,0.000127,4]
[338246711,1726433439835,-675.1766,0.000127,2]
[338246712,1726433439845,-450.76943,0.0001273,2]
[338246713,1726433439855,-450.76944,0.0001277,2]
[338246714,1726433439864,-34486.36192827,0.000128,2]
[338246715,1726433439875,-55126.91200374,0.000128,2]
[338246716,1726433439887,-526.41,0.000128,2]
[338246717,1726433439899,-753.83647302,0.000128,2]
[338246718,1726433439927,-306.09729367,0.000128,2]
[338246731,1726433443185,-338.94299958,0.000128,2]
[338246757,1726433445788,-8697.52829356,0.000128,2]
[338246764,1726433483985,23890.0,0.00012116,2]
[338246765,1726433504270,202.5,0.00012112,2]
[338246766,1726433561097,357.23,0.00010128,2]
[338246767,1726433561341,357.23,0.00012392,2]
[338246768,1726433563590,1070.03,0.00012046,2]
[338246769,1726433585460,250.0,0.00012046,2]
[338246770,1726433585784,250.0,0.00012046,2]
[338246771,1726433653051,3274.25,0.0001246,30]
[338246773,1726433706474,174.79,0.00010959,2]
[338246774,1726433842801,167.0,0.00012445,2]
[338246775,1726433865229,150.68,0.00012117,2]
[338246776,1726433912370,172.39,0.00012022,2]
[338246777,1726433930508,328.0,0.00012022,2]
[338246778,1726434002902,9042.07,0.00012118,2]
[338246779,1726434080036,337.27,0.00010121,2]
[338246780,1726434080250,337.27,0.00012385,2]
[338246781,1726434110230,250.0,0.00012031,2]
[338246782,1726434198276,364.23,0.00011998,2]
[338246784,1726434391847,167.0,0.00012445,2]
[338246785,1726434395485,179.66,0.00012054,2]
[338246786,1726434463224,737.6,0.00012108,2]
[338246800,1726434631853,-202.51727,0.0001267,2]
[338246801,1726434631863,-202.51728,0.0001267,2]
[338246802,1726434631873,-165.05545,0.00012699,2]
[338246803,1726434631885,-0.07209183,0.00012699,2]
[338246804,1726434631895,-150.0,0.00012699,2]
[338246805,1726434631904,-515.05018882,0.000127,2]
[338246806,1726434631916,-65.49251118,0.000127,2]
[338246807,1726434631927,-2500.63508948,0.000127,2]
[338246808,1726434631939,-571.20381052,0.000127,2]
[338246809,1726434631948,-420.0,0.000127,2]
[338246810,1726434631961,-187.68060646,0.000127,2]
[338246811,1726434631972,-315.4845532,0.000127,2]
[338246812,1726434631982,-58.05462582,0.000127,2]
[338246813,1726434631994,-262.21229085,0.000127,2]
[338246814,1726434632007,-144.5662293,0.00012767,2]
[338246815,1726434632023,-320.0759707,0.00012767,2]
[338246816,1726434632032,-318.45899368,0.000128,2]
[338246817,1726434632043,-303.54100632,0.000128,2]
[338246818,1726434632053,-15494.51441676,0.000128,2]
[338246819,1726434632064,-548.16321584,0.000128,2]
[338246820,1726434632080,-943.09082566,0.000128,2]
[338246821,1726434632093,-700.03056286,0.000128,2]
[338246823,1726434632104,-600.81924,0.000128,2]
[338246825,1726434632116,-1412.58108162,0.000128,2]